[Event "Titled Tuesday Blitz April 4 Early 2023"]
[White "Rose, Felix"]
[Black "Latreche, Khadidja"]
[WhiteFideId "5105722"]
[BlackFideId "7901780"]
[WhiteElo "2039"]
[BlackElo "1869"]
[Result "1-0"]
[Round "04"]
[TimeControl "180+2"]
[Date "2023.04.04"]
[WhiteClock "0:00:53"]
[BlackClock "0:00:47"]

1. e4 {[%clk 0:02:54]}  c5 {[%clk 0:03:00]} 2. Nf3 {[%clk 0:02:54]}  e6 {[%clk 0:02:59]} 3. d4 {[%clk 0:02:54]}  cxd4 {[%clk 0:02:59]} 4. Nxd4 {[%clk 0:02:55]}  Nc6 {[%clk 0:03:00]} 5. Nc3 {[%clk 0:02:55]}  Qc7 {[%clk 0:02:59]} 6. Be3 {[%clk 0:02:55]}  a6 {[%clk 0:02:59]} 7. Qf3 {[%clk 0:02:54]}  Nxd4 {[%clk 0:02:53]} 8. Bxd4 {[%clk 0:02:54]}  e5 {[%clk 0:02:53]} 9. Qg3 {[%clk 0:02:45]}  d6 {[%clk 0:02:35]} 10. Nd5 {[%clk 0:02:05]}  Qxc2 {[%clk 0:02:03]} 11. Bd3 {[%clk 0:02:02]}  Qc6 {[%clk 0:01:58]} 12. Bb6 {[%clk 0:01:56]}  Be6 {[%clk 0:01:19]} 13. Nc7+ {[%clk 0:01:51]}  Kd7 {[%clk 0:01:19]} 14. Nxa8 {[%clk 0:01:50]}  Nf6 {[%clk 0:01:07]} 15. O-O {[%clk 0:01:49]}  Nxe4 {[%clk 0:01:03]} 16. Bxe4 {[%clk 0:01:12]}  Qxe4 {[%clk 0:01:01]} 17. Rac1 {[%clk 0:01:00]}  Bc4 {[%clk 0:00:55]} 18. Rfe1 {[%clk 0:00:57]}  Qd5 {[%clk 0:00:47]} 19. Qg4+ {[%clk 0:00:53]} 1-0


[Site "https://www.chess.com"]

[Event "Titled Tuesday Blitz April 4 Early 2023"]
[White "Singgih, Diajeng Theresa"]
[Black "Nugumanov, Bakhtiyar"]
[WhiteFideId "7104391"]
[BlackFideId "13701797"]
[WhiteElo "1891"]
[BlackElo "2209"]
[Result "0-1"]
[Round "04"]
[TimeControl "180+2"]
[Date "2023.04.04"]
[WhiteClock "0:00:14"]
[BlackClock "0:00:15"]

1. e4 {[%clk 0:03:00]}  e6 {[%clk 0:02:57]} 2. d4 {[%clk 0:03:00]}  d5 {[%clk 0:02:57]} 3. exd5 {[%clk 0:02:59]}  exd5 {[%clk 0:02:57]} 4. Nf3 {[%clk 0:02:58]}  Nc6 {[%clk 0:02:55]} 5. c3 {[%clk 0:02:57]}  Bd6 {[%clk 0:02:52]} 6. Bd3 {[%clk 0:02:55]}  Nge7 {[%clk 0:02:52]} 7. O-O {[%clk 0:02:55]}  O-O {[%clk 0:02:50]} 8. Re1 {[%clk 0:02:50]}  Bf5 {[%clk 0:02:45]} 9. Ne5 {[%clk 0:02:48]}  Bxd3 {[%clk 0:02:38]} 10. Qxd3 {[%clk 0:02:47]}  Ng6 {[%clk 0:02:39]} 11. f4 {[%clk 0:02:46]}  Re8 {[%clk 0:02:26]} 12. Rf1 {[%clk 0:02:37]}  Qf6 {[%clk 0:01:22]} 13. Be3 {[%clk 0:02:25]}  Nce7 {[%clk 0:01:18]} 14. Nd2 {[%clk 0:02:23]}  Nf5 {[%clk 0:01:19]} 15. Rae1 {[%clk 0:02:13]}  c5 {[%clk 0:01:18]} 16. g4 {[%clk 0:02:04]}  Nxe3 {[%clk 0:01:18]} 17. Qxe3 {[%clk 0:02:03]}  cxd4 {[%clk 0:01:18]} 18. cxd4 {[%clk 0:02:03]}  h6 {[%clk 0:01:11]} 19. h3 {[%clk 0:01:59]}  Rac8 {[%clk 0:01:03]} 20. Nb3 {[%clk 0:01:40]}  Qh4 {[%clk 0:01:01]} 21. Qf2 {[%clk 0:01:34]}  Qxh3 {[%clk 0:00:59]} 22. Re3 {[%clk 0:01:17]}  Qh4 {[%clk 0:00:51]} 23. Qxh4 {[%clk 0:01:05]}  Nxh4 {[%clk 0:00:52]} 24. Rh3 {[%clk 0:00:41]}  Ng6 {[%clk 0:00:48]} 25. Na5 {[%clk 0:00:38]}  Nxf4 {[%clk 0:00:40]} 26. Rxf4 {[%clk 0:00:30]}  f6 {[%clk 0:00:40]} 27. Nxb7 {[%clk 0:00:29]}  Bb8 {[%clk 0:00:25]} 28. Rf5 {[%clk 0:00:22]}  fxe5 {[%clk 0:00:24]} 29. dxe5 {[%clk 0:00:22]}  Bxe5 {[%clk 0:00:21]} 30. b3 {[%clk 0:00:18]}  d4 {[%clk 0:00:18]} 31. Rhf3 {[%clk 0:00:16]}  Rc1+ {[%clk 0:00:16]} 32. Kg2 {[%clk 0:00:15]}  Rc2+ {[%clk 0:00:16]} 33. Rf2 {[%clk 0:00:15]}  d3 {[%clk 0:00:17]} 34. Na5 {[%clk 0:00:14]}  d2 {[%clk 0:00:15]} 0-1


[Site "https://www.chess.com"]

[Event "Titled Tuesday Blitz April 4 Early 2023"]
[White "Rasulov, Vugar"]
[Black "Andreikin, Dmitry"]
[WhiteFideId "13402390"]
[BlackFideId "4158814"]
[WhiteElo "2509"]
[BlackElo "2736"]
[Result "1/2-1/2"]
[Round "05"]
[TimeControl "180+2"]
[Date "2023.04.04"]
[WhiteClock "0:02:07"]
[BlackClock "0:01:34"]

1. e4 {[%clk 0:03:00]}  c5 {[%clk 0:02:59]} 2. Nf3 {[%clk 0:03:01]}  e6 {[%clk 0:02:58]} 3. c3 {[%clk 0:03:01]}  d5 {[%clk 0:02:52]} 4. exd5 {[%clk 0:03:00]}  exd5 {[%clk 0:02:53]} 5. d4 {[%clk 0:03:00]}  Nc6 {[%clk 0:02:53]} 6. Bb5 {[%clk 0:02:58]}  Bd6 {[%clk 0:02:52]} 7. O-O {[%clk 0:02:57]}  Ne7 {[%clk 0:02:53]} 8. dxc5 {[%clk 0:02:56]}  Bxc5 {[%clk 0:02:53]} 9. Nbd2 {[%clk 0:02:56]}  O-O {[%clk 0:02:52]} 10. Nb3 {[%clk 0:02:56]}  Bb6 {[%clk 0:02:52]} 11. h3 {[%clk 0:02:54]}  Bf5 {[%clk 0:02:48]} 12. Re1 {[%clk 0:02:51]}  Be4 {[%clk 0:02:34]} 13. Ng5 {[%clk 0:02:41]}  Bxf2+ {[%clk 0:02:17]} 14. Kxf2 {[%clk 0:02:40]}  Qb6+ {[%clk 0:02:18]} 15. Nd4 {[%clk 0:02:25]}  Nxd4 {[%clk 0:02:18]} 16. Qxd4 {[%clk 0:02:26]}  Qxb5 {[%clk 0:02:17]} 17. a4 {[%clk 0:02:21]}  Qc6 {[%clk 0:01:53]} 18. Nxe4 {[%clk 0:02:21]}  dxe4 {[%clk 0:01:53]} 19. Qxe4 {[%clk 0:02:22]}  Qb6+ {[%clk 0:01:48]} 20. Qe3 {[%clk 0:02:14]}  Qf6+ {[%clk 0:01:47]} 21. Qf3 {[%clk 0:02:12]}  Qb6+ {[%clk 0:01:43]} 22. Qe3 {[%clk 0:02:07]}  Qf6+ {[%clk 0:01:40]} 23. Qf3 {[%clk 0:02:07]}  Qb6+ {[%clk 0:01:34]} 24. Qe3 {[%clk 0:02:07]} 1/2-1/2


[Site "https://www.chess.com"]

[Event "Titled Tuesday Blitz April 4 Early 2023"]
[White "Indjic, Aleksandar"]
[Black "Hakobyan, Aram"]
[WhiteFideId "911925"]
[BlackFideId "13306677"]
[WhiteElo "2614"]
[BlackElo "2584"]
[Result "1-0"]
[Round "05"]
[TimeControl "180+2"]
[Date "2023.04.04"]
[WhiteClock "0:00:30"]
[BlackClock "0:00:05"]

1. d4 {[%clk 0:03:00]}  Nf6 {[%clk 0:03:00]} 2. c4 {[%clk 0:02:59]}  e6 {[%clk 0:03:01]} 3. Nc3 {[%clk 0:02:59]}  Bb4 {[%clk 0:03:01]} 4. e3 {[%clk 0:02:59]}  Bxc3+ {[%clk 0:02:59]} 5. bxc3 {[%clk 0:02:58]}  c5 {[%clk 0:03:00]} 6. Bd3 {[%clk 0:02:57]}  d6 {[%clk 0:03:00]} 7. e4 {[%clk 0:02:47]}  Nc6 {[%clk 0:03:00]} 8. Ne2 {[%clk 0:02:46]}  e5 {[%clk 0:03:00]} 9. O-O {[%clk 0:02:30]}  O-O {[%clk 0:02:57]} 10. d5 {[%clk 0:02:29]}  Ne7 {[%clk 0:02:57]} 11. g3 {[%clk 0:02:22]}  Bh3 {[%clk 0:02:55]} 12. Re1 {[%clk 0:02:22]}  Nd7 {[%clk 0:02:23]} 13. f3 {[%clk 0:02:14]}  f5 {[%clk 0:02:21]} 14. Kh1 {[%clk 0:02:08]}  fxe4 {[%clk 0:02:16]} 15. fxe4 {[%clk 0:02:08]}  Nf6 {[%clk 0:02:09]} 16. Ng1 {[%clk 0:02:07]}  Bg4 {[%clk 0:02:07]} 17. Qc2 {[%clk 0:02:08]}  Qe8 {[%clk 0:02:01]} 18. Qg2 {[%clk 0:02:08]}  Qh5 {[%clk 0:01:56]} 19. Bd2 {[%clk 0:02:03]}  Rf7 {[%clk 0:01:49]} 20. Rf1 {[%clk 0:01:58]}  Raf8 {[%clk 0:01:48]} 21. a4 {[%clk 0:01:58]}  a5 {[%clk 0:01:26]} 22. Rab1 {[%clk 0:01:56]}  Nc8 {[%clk 0:01:26]} 23. h3 {[%clk 0:01:40]}  Bd7 {[%clk 0:01:20]} 24. Bc2 {[%clk 0:01:07]}  b6 {[%clk 0:01:06]} 25. Rf5 {[%clk 0:01:03]}  Bxf5 {[%clk 0:00:28]} 26. exf5 {[%clk 0:01:04]}  Ne7 {[%clk 0:00:29]} 27. g4 {[%clk 0:01:03]}  Nxg4 {[%clk 0:00:29]} 28. Qxg4 {[%clk 0:01:03]}  Nxf5 {[%clk 0:00:30]} 29. Bxf5 {[%clk 0:00:55]}  Qxf5 {[%clk 0:00:29]} 30. Qxf5 {[%clk 0:00:56]}  Rxf5 {[%clk 0:00:30]} 31. Rxb6 {[%clk 0:00:55]}  Rf1 {[%clk 0:00:27]} 32. Bg5 {[%clk 0:00:49]}  R8f5 {[%clk 0:00:10]} 33. Be7 {[%clk 0:00:45]}  e4 {[%clk 0:00:10]} 34. Bxd6 {[%clk 0:00:39]}  h5 {[%clk 0:00:09]} 35. Rb8+ {[%clk 0:00:37]}  Kh7 {[%clk 0:00:09]} 36. Re8 {[%clk 0:00:38]}  Rg5 {[%clk 0:00:08]} 37. Bh2 {[%clk 0:00:38]}  Re1 {[%clk 0:00:09]} 38. d6 {[%clk 0:00:38]}  Rd1 {[%clk 0:00:03]} 39. Rxe4 {[%clk 0:00:36]}  Rf5 {[%clk 0:00:04]} 40. Re2 {[%clk 0:00:35]}  Rff1 {[%clk 0:00:02]} 41. Kg2 {[%clk 0:00:34]}  Rf6 {[%clk 0:00:02]} 42. Nf3 {[%clk 0:00:33]}  Rg6+ {[%clk 0:00:03]} 43. Kf2 {[%clk 0:00:33]}  Rf6 {[%clk 0:00:03]} 44. Be5 {[%clk 0:00:32]}  Rf5 {[%clk 0:00:03]} 45. Re3 {[%clk 0:00:32]}  g5 {[%clk 0:00:02]} 46. Ke2 {[%clk 0:00:31]}  Ra1 {[%clk 0:00:01]} 47. h4 {[%clk 0:00:29]}  g4 {[%clk 0:00:02]} 48. Ng5+ {[%clk 0:00:30]}  Kg6 {[%clk 0:00:03]} 49. Bg3 {[%clk 0:00:29]}  Ra2+ {[%clk 0:00:03]} 50. Kd3 {[%clk 0:00:30]}  Ra1 {[%clk 0:00:04]} 51. Re6+ {[%clk 0:00:30]}  Kg7 {[%clk 0:00:04]} 52. Be5+ {[%clk 0:00:28]}  Kf8 {[%clk 0:00:05]} 53. Ke4 {[%clk 0:00:29]}  Rff1 {[%clk 0:00:05]} 54. Kd5 {[%clk 0:00:29]}  Rad1+ {[%clk 0:00:05]} 55. Kc6 {[%clk 0:00:30]}  Rfe1 {[%clk 0:00:05]} 56. d7 {[%clk 0:00:30]}  g3 {[%clk 0:00:05]} 57. Bd6+ {[%clk 0:00:30]}  Rxd6+ {[%clk 0:00:05]} 58. Rxd6 {[%clk 0:00:30]}  g2 {[%clk 0:00:05]} 59. d8=Q+ {[%clk 0:00:30]}  Re8 {[%clk 0:00:05]} 60. Qf6+ {[%clk 0:00:30]} 1-0


[Site "https://www.chess.com"]

[Event "Titled Tuesday Blitz April 4 Early 2023"]
[White "Schmakel, Sam"]
[Black "Zakhartsov, Vladimir"]
[WhiteFideId "2039311"]
[BlackFideId "4145097"]
[WhiteElo "2356"]
[BlackElo "2497"]
[Result "0-1"]
[Round "05"]
[TimeControl "180+2"]
[Date "2023.04.04"]
[WhiteClock "0:00:02"]
[BlackClock "0:00:55"]

1. Nf3 {[%clk 0:02:59]}  c5 {[%clk 0:02:59]} 2. g3 {[%clk 0:02:59]}  Nc6 {[%clk 0:02:59]} 3. Bg2 {[%clk 0:02:59]}  g6 {[%clk 0:03:00]} 4. c3 {[%clk 0:02:53]}  e5 {[%clk 0:02:56]} 5. e4 {[%clk 0:02:46]}  Bg7 {[%clk 0:02:50]} 6. O-O {[%clk 0:02:46]}  Nge7 {[%clk 0:02:47]} 7. d3 {[%clk 0:02:45]}  O-O {[%clk 0:02:42]} 8. Na3 {[%clk 0:02:28]}  d6 {[%clk 0:02:41]} 9. Re1 {[%clk 0:02:12]}  h6 {[%clk 0:02:30]} 10. Nc4 {[%clk 0:01:43]}  Re8 {[%clk 0:02:27]} 11. a4 {[%clk 0:01:42]}  d5 {[%clk 0:02:26]} 12. exd5 {[%clk 0:01:35]}  Nxd5 {[%clk 0:02:27]} 13. Qb3 {[%clk 0:01:35]}  Nb6 {[%clk 0:02:25]} 14. a5 {[%clk 0:01:25]}  Nxc4 {[%clk 0:02:21]} 15. Qxc4 {[%clk 0:01:09]}  Nxa5 {[%clk 0:02:20]} 16. Qa4 {[%clk 0:01:02]}  Nc6 {[%clk 0:02:16]} 17. Be3 {[%clk 0:01:02]}  Bf8 {[%clk 0:01:58]} 18. Nd2 {[%clk 0:00:53]}  Bd7 {[%clk 0:01:54]} 19. Qb3 {[%clk 0:00:36]}  Rb8 {[%clk 0:01:49]} 20. f4 {[%clk 0:00:29]}  Be6 {[%clk 0:01:37]} 21. Qc2 {[%clk 0:00:29]}  Bd5 {[%clk 0:01:36]} 22. Bxd5 {[%clk 0:00:28]}  Qxd5 {[%clk 0:01:34]} 23. Ne4 {[%clk 0:00:29]}  Kg7 {[%clk 0:01:17]} 24. fxe5 {[%clk 0:00:09]}  Nxe5 {[%clk 0:01:14]} 25. Qf2 {[%clk 0:00:03]}  f5 {[%clk 0:01:10]} 26. Nd2 {[%clk 0:00:02]}  Nxd3 {[%clk 0:01:07]} 27. Qf1 {[%clk 0:00:03]}  Nxe1 {[%clk 0:01:07]} 28. Rxe1 {[%clk 0:00:04]}  Rxe3 {[%clk 0:01:00]} 29. Rxe3 {[%clk 0:00:03]}  Qxd2 {[%clk 0:01:00]} 30. Re6 {[%clk 0:00:03]}  Rd8 {[%clk 0:00:58]} 31. Qb5 {[%clk 0:00:03]}  Qd7 {[%clk 0:00:55]} 32. Qe2 {[%clk 0:00:02]}  Qd1+ {[%clk 0:00:55]} 0-1


[Site "https://www.chess.com"]

[Event "Titled Tuesday Blitz April 4 Early 2023"]
[White "Seemann, Jakub"]
[Black "Yeletsky, Ivan"]
[WhiteFideId "21874697"]
[BlackFideId "24180327"]
[WhiteElo "2364"]
[BlackElo "2422"]
[Result "0-1"]
[Round "05"]
[TimeControl "180+2"]
[Date "2023.04.04"]
[WhiteClock "0:00:20"]
[BlackClock "0:01:31"]

1. e4 {[%clk 0:02:37]}  c6 {[%clk 0:02:56]} 2. d4 {[%clk 0:02:36]}  d5 {[%clk 0:02:56]} 3. e5 {[%clk 0:02:37]}  Bf5 {[%clk 0:02:56]} 4. Nf3 {[%clk 0:02:38]}  e6 {[%clk 0:02:56]} 5. Be2 {[%clk 0:02:39]}  c5 {[%clk 0:02:57]} 6. O-O {[%clk 0:02:36]}  Nc6 {[%clk 0:02:56]} 7. Be3 {[%clk 0:02:35]}  cxd4 {[%clk 0:02:55]} 8. Nxd4 {[%clk 0:02:36]}  Nge7 {[%clk 0:02:55]} 9. Nxc6 {[%clk 0:02:33]}  Nxc6 {[%clk 0:02:55]} 10. c4 {[%clk 0:02:33]}  d4 {[%clk 0:02:55]} 11. Bf4 {[%clk 0:02:31]}  Qd7 {[%clk 0:02:39]} 12. a3 {[%clk 0:02:30]}  Rd8 {[%clk 0:02:38]} 13. Bd3 {[%clk 0:02:29]}  Be7 {[%clk 0:02:36]} 14. Bxf5 {[%clk 0:02:26]}  exf5 {[%clk 0:02:36]} 15. Qd3 {[%clk 0:02:27]}  g5 {[%clk 0:02:35]} 16. Bc1 {[%clk 0:02:00]}  Nxe5 {[%clk 0:02:35]} 17. Qe2 {[%clk 0:01:59]}  Qe6 {[%clk 0:02:35]} 18. Nd2 {[%clk 0:01:57]}  d3 {[%clk 0:02:31]} 19. Qe3 {[%clk 0:01:55]}  Nc6 {[%clk 0:01:47]} 20. Qh3 {[%clk 0:01:31]}  g4 {[%clk 0:01:38]} 21. Qh5 {[%clk 0:01:31]}  Qg6 {[%clk 0:01:38]} 22. Qxg6 {[%clk 0:01:30]}  hxg6 {[%clk 0:01:39]} 23. b4 {[%clk 0:01:22]}  Bf6 {[%clk 0:01:38]} 24. Rb1 {[%clk 0:01:19]}  Nd4 {[%clk 0:01:38]} 25. Bb2 {[%clk 0:01:09]}  Ne2+ {[%clk 0:01:38]} 26. Kh1 {[%clk 0:01:10]}  Ke7 {[%clk 0:01:39]} 27. Bxf6+ {[%clk 0:01:08]}  Kxf6 {[%clk 0:01:39]} 28. h3 {[%clk 0:00:57]}  f4 {[%clk 0:01:33]} 29. c5 {[%clk 0:00:33]}  f3 {[%clk 0:01:32]} 30. gxf3 {[%clk 0:00:24]}  Rxh3+ {[%clk 0:01:32]} 31. Kg2 {[%clk 0:00:21]}  Nf4+ {[%clk 0:01:32]} 32. Kg1 {[%clk 0:00:19]}  Rdh8 {[%clk 0:01:33]} 33. Ne4+ {[%clk 0:00:20]}  Kg7 {[%clk 0:01:33]} 34. Ng3 {[%clk 0:00:20]}  gxf3 {[%clk 0:01:31]} 0-1


[Site "https://www.chess.com"]

[Event "Titled Tuesday Blitz April 4 Early 2023"]
[White "Drygalov, Andrey"]
[Black "Darini, Pouria"]
[WhiteFideId "24171735"]
[BlackFideId "12502200"]
[WhiteElo "2466"]
[BlackElo "2482"]
[Result "1-0"]
[Round "05"]
[TimeControl "180+2"]
[Date "2023.04.04"]
[WhiteClock "0:01:44"]
[BlackClock "0:00:21"]

1. e4 {[%clk 0:03:00]}  e5 {[%clk 0:02:53]} 2. Nf3 {[%clk 0:02:56]}  Nc6 {[%clk 0:02:53]} 3. Bc4 {[%clk 0:02:56]}  Bc5 {[%clk 0:02:52]} 4. c3 {[%clk 0:02:56]}  Nf6 {[%clk 0:02:52]} 5. d3 {[%clk 0:02:57]}  a6 {[%clk 0:02:49]} 6. O-O {[%clk 0:02:57]}  Ba7 {[%clk 0:02:50]} 7. a4 {[%clk 0:02:56]}  d6 {[%clk 0:02:49]} 8. Re1 {[%clk 0:02:56]}  O-O {[%clk 0:02:38]} 9. Nbd2 {[%clk 0:02:53]}  Ne7 {[%clk 0:02:29]} 10. Nf1 {[%clk 0:02:51]}  Ng6 {[%clk 0:02:29]} 11. Ng3 {[%clk 0:02:51]}  c6 {[%clk 0:02:30]} 12. Bb3 {[%clk 0:02:47]}  Re8 {[%clk 0:02:24]} 13. h3 {[%clk 0:02:44]}  Be6 {[%clk 0:02:24]} 14. d4 {[%clk 0:02:44]}  h6 {[%clk 0:02:14]} 15. Be3 {[%clk 0:02:41]}  Qc7 {[%clk 0:01:48]} 16. Bc2 {[%clk 0:02:38]}  c5 {[%clk 0:01:24]} 17. Qd2 {[%clk 0:02:26]}  Rad8 {[%clk 0:01:11]} 18. Nf5 {[%clk 0:01:54]}  Bxf5 {[%clk 0:00:55]} 19. exf5 {[%clk 0:01:54]}  Nf8 {[%clk 0:00:28]} 20. Bxh6 {[%clk 0:01:43]}  gxh6 {[%clk 0:00:28]} 21. Qxh6 {[%clk 0:01:43]}  N8h7 {[%clk 0:00:28]} 22. Ng5 {[%clk 0:01:43]}  Qe7 {[%clk 0:00:20]} 23. Nxh7 {[%clk 0:01:43]}  Nxh7 {[%clk 0:00:20]} 24. f6 {[%clk 0:01:43]}  Nxf6 {[%clk 0:00:21]} 25. Re3 {[%clk 0:01:44]} 1-0


[Site "https://www.chess.com"]

[Event "Titled Tuesday Blitz April 4 Early 2023"]
[White "Hamitevici, Vladimir"]
[Black "Vakhlamov, Igor L."]
[WhiteFideId "13902393"]
[BlackFideId "24126748"]
[WhiteElo "2401"]
[BlackElo "2400"]
[Result "0-1"]
[Round "05"]
[TimeControl "180+2"]
[Date "2023.04.04"]
[WhiteClock "0:00:03"]
[BlackClock "0:00:04"]

1. Nf3 {[%clk 0:03:00]}  d5 {[%clk 0:02:58]} 2. c4 {[%clk 0:02:59]}  e6 {[%clk 0:02:58]} 3. b3 {[%clk 0:02:57]}  Nf6 {[%clk 0:02:58]} 4. g3 {[%clk 0:02:56]}  Be7 {[%clk 0:02:58]} 5. Bg2 {[%clk 0:02:57]}  O-O {[%clk 0:02:58]} 6. O-O {[%clk 0:02:57]}  c5 {[%clk 0:02:58]} 7. cxd5 {[%clk 0:02:46]}  exd5 {[%clk 0:02:59]} 8. d4 {[%clk 0:02:46]}  Nc6 {[%clk 0:02:58]} 9. Nc3 {[%clk 0:02:34]}  Ne4 {[%clk 0:02:54]} 10. Bb2 {[%clk 0:02:00]}  Bf6 {[%clk 0:02:54]} 11. e3 {[%clk 0:01:48]}  cxd4 {[%clk 0:02:48]} 12. Nxd4 {[%clk 0:01:41]}  Nxd4 {[%clk 0:02:48]} 13. exd4 {[%clk 0:01:14]}  Bf5 {[%clk 0:02:48]} 14. Re1 {[%clk 0:00:56]}  Re8 {[%clk 0:02:35]} 15. Rc1 {[%clk 0:00:42]}  Qa5 {[%clk 0:02:29]} 16. Nxe4 {[%clk 0:00:37]}  Bxe4 {[%clk 0:02:24]} 17. Bxe4 {[%clk 0:00:26]}  dxe4 {[%clk 0:02:19]} 18. Rc5 {[%clk 0:00:19]}  Qxa2 {[%clk 0:02:08]} 19. Qc2 {[%clk 0:00:19]}  Qa6 {[%clk 0:01:22]} 20. Rxe4 {[%clk 0:00:19]}  h6 {[%clk 0:01:16]} 21. b4 {[%clk 0:00:15]}  Qd6 {[%clk 0:00:55]} 22. f3 {[%clk 0:00:14]}  Red8 {[%clk 0:00:53]} 23. b5 {[%clk 0:00:11]}  b6 {[%clk 0:00:39]} 24. Rc6 {[%clk 0:00:11]}  Qd5 {[%clk 0:00:39]} 25. Qd3 {[%clk 0:00:08]}  Rd7 {[%clk 0:00:35]} 26. Rg4 {[%clk 0:00:04]}  h5 {[%clk 0:00:21]} 27. Rf4 {[%clk 0:00:03]}  Rad8 {[%clk 0:00:20]} 28. Rf5 {[%clk 0:00:03]}  Bxd4+ {[%clk 0:00:21]} 29. Kg2 {[%clk 0:00:04]}  Qa2 {[%clk 0:00:17]} 30. Rxh5 {[%clk 0:00:04]}  Qxb2+ {[%clk 0:00:16]} 31. Rc2 {[%clk 0:00:04]}  Qb4 {[%clk 0:00:04]} 32. Qh7+ {[%clk 0:00:04]}  Kf8 {[%clk 0:00:04]} 33. Qh8+ {[%clk 0:00:03]}  Ke7 {[%clk 0:00:05]} 34. Re2+ {[%clk 0:00:04]}  Kd6 {[%clk 0:00:05]} 35. Qh7 {[%clk 0:00:02]}  Kc7 {[%clk 0:00:06]} 36. Qe4 {[%clk 0:00:01]}  Kb8 {[%clk 0:00:06]} 37. Rc2 {[%clk 0:00:01]}  Qd6 {[%clk 0:00:06]} 38. Rc6 {[%clk 0:00:01]}  Qe7 {[%clk 0:00:06]} 39. Qg4 {[%clk 0:00:02]}  Bf6 {[%clk 0:00:05]} 40. Rf5 {[%clk 0:00:02]}  Qe2+ {[%clk 0:00:04]} 41. Kh3 {[%clk 0:00:03]}  Qe7 {[%clk 0:00:04]} 42. Rh5 {[%clk 0:00:03]}  g6 {[%clk 0:00:04]} 43. Rh7 {[%clk 0:00:04]}  Be5 {[%clk 0:00:04]} 44. f4 {[%clk 0:00:04]}  Bd6 {[%clk 0:00:04]} 45. f5 {[%clk 0:00:04]}  Qe5 {[%clk 0:00:04]} 46. fxg6 {[%clk 0:00:05]}  f5 {[%clk 0:00:04]} 47. Qg5 {[%clk 0:00:04]}  Rh8 {[%clk 0:00:02]} 48. Rc4 {[%clk 0:00:02]}  Rhxh7+ {[%clk 0:00:02]} 49. gxh7 {[%clk 0:00:02]}  Rxh7+ {[%clk 0:00:03]} 50. Kg2 {[%clk 0:00:03]}  Qd5+ {[%clk 0:00:03]} 51. Kf2 {[%clk 0:00:03]}  Qxc4 {[%clk 0:00:04]} 52. Qd8+ {[%clk 0:00:02]}  Qc8 {[%clk 0:00:02]} 53. Qxd6+ {[%clk 0:00:03]}  Qc7 {[%clk 0:00:03]} 54. Qf8+ {[%clk 0:00:03]}  Kb7 {[%clk 0:00:04]} 55. Qxf5 {[%clk 0:00:03]}  Rf7 {[%clk 0:00:04]} 0-1


[Site "https://www.chess.com"]

[Event "Titled Tuesday Blitz April 4 Early 2023"]
[White "Corrales Jimenez, Fidel"]
[Black "Vaibhav Jayant Raut"]
[WhiteFideId "3506690"]
[BlackFideId "5089034"]
[WhiteElo "2541"]
[BlackElo "2156"]
[Result "1-0"]
[Round "05"]
[TimeControl "180+2"]
[Date "2023.04.04"]
[WhiteClock "0:02:09"]
[BlackClock "0:00:02"]

1. e4 {[%clk 0:03:00]}  c5 {[%clk 0:03:00]} 2. d4 {[%clk 0:03:00]}  cxd4 {[%clk 0:03:00]} 3. c3 {[%clk 0:03:01]}  d3 {[%clk 0:03:00]} 4. Bxd3 {[%clk 0:03:00]}  Nc6 {[%clk 0:03:01]} 5. f4 {[%clk 0:03:01]}  d5 {[%clk 0:02:56]} 6. e5 {[%clk 0:03:00]}  h5 {[%clk 0:02:34]} 7. Nf3 {[%clk 0:02:59]}  Nh6 {[%clk 0:02:34]} 8. O-O {[%clk 0:02:59]}  Bf5 {[%clk 0:02:34]} 9. Be3 {[%clk 0:02:58]}  e6 {[%clk 0:02:32]} 10. h3 {[%clk 0:02:56]}  Rc8 {[%clk 0:02:30]} 11. Bf2 {[%clk 0:02:54]}  Bxd3 {[%clk 0:02:29]} 12. Qxd3 {[%clk 0:02:53]}  Nf5 {[%clk 0:02:30]} 13. Nbd2 {[%clk 0:02:53]}  Be7 {[%clk 0:02:25]} 14. g4 {[%clk 0:02:52]}  hxg4 {[%clk 0:02:24]} 15. hxg4 {[%clk 0:02:53]}  Nh6 {[%clk 0:02:25]} 16. Nh2 {[%clk 0:02:51]}  Bh4 {[%clk 0:02:22]} 17. Be3 {[%clk 0:02:47]}  Bg3 {[%clk 0:02:13]} 18. Ndf3 {[%clk 0:02:47]}  Bxh2+ {[%clk 0:02:12]} 19. Nxh2 {[%clk 0:02:48]}  Qh4 {[%clk 0:01:52]} 20. Bf2 {[%clk 0:02:48]}  Qe7 {[%clk 0:01:47]} 21. Kg2 {[%clk 0:02:48]}  Ng8 {[%clk 0:01:31]} 22. Rh1 {[%clk 0:02:47]}  Qd7 {[%clk 0:01:15]} 23. Nf3 {[%clk 0:02:46]}  Rh6 {[%clk 0:01:07]} 24. g5 {[%clk 0:02:46]}  Rxh1 {[%clk 0:01:05]} 25. Rxh1 {[%clk 0:02:47]}  Kd8 {[%clk 0:01:04]} 26. Bc5 {[%clk 0:02:45]}  Kc7 {[%clk 0:00:27]} 27. Bd6+ {[%clk 0:02:45]}  Kb6 {[%clk 0:00:27]} 28. b4 {[%clk 0:02:41]}  Nce7 {[%clk 0:00:17]} 29. Qe3+ {[%clk 0:02:33]}  Ka6 {[%clk 0:00:13]} 30. a4 {[%clk 0:02:33]}  Qxa4 {[%clk 0:00:13]} 31. b5+ {[%clk 0:02:32]}  Kxb5 {[%clk 0:00:08]} 32. Nd4+ {[%clk 0:02:30]}  Ka6 {[%clk 0:00:04]} 33. Qd3+ {[%clk 0:02:12]}  b5 {[%clk 0:00:04]} 34. Ra1 {[%clk 0:02:10]}  Rc4 {[%clk 0:00:02]} 35. Rxa4+ {[%clk 0:02:09]} 1-0


[Site "https://www.chess.com"]